fUST/lending_fUST_20250716
["ID","MTS","AMOUNT","RATE_DAILY","PERIOD"]
[372383557,1752619853687,-1417.29,0.00024109,2]
[372383558,1752619853696,-1366.06,0.00024109,2]
[372383559,1752619853706,-606.96,0.00024109,2]
[372383560,1752619853715,-872.31,0.00024109,2]
[372383561,1752619853725,-1182.92,0.00024109,2]
[372383562,1752619853734,-1493.09,0.00024109,2]
[372383563,1752619853744,-3052.06,0.00024109,2]
[372383564,1752619853753,-779.46,0.00024109,2]
[372383565,1752619853763,-584.49,0.00024109,2]
[372383566,1752619853772,-611.81,0.00024109,2]
[372383567,1752619853782,-245.8275495,0.00024164,2]
[372383568,1752619853791,-153.0,0.00024164,2]
[372383569,1752619853801,-159.7039591,0.00024164,2]
[372383570,1752619853810,-159.7039591,0.00024164,2]
[372383571,1752619853820,-159.7039591,0.00024164,2]
[372383572,1752619853829,-223.0315306,0.00024194,2]
[372383573,1752619853839,-161.5,0.00024202,6]
[372383574,1752619853848,-151.0,0.000243,6]
[372383575,1752619853857,-160.77237198,0.00024301,2]
[372383576,1752619853867,-164.09001901,0.00024301,2]
[372383577,1752619853876,-164.09001901,0.00024301,2]
[372383578,1752619853887,-608.0,0.00024379,2]
[372383579,1752619853896,-521.23,0.00024383,2]
[372383580,1752619853906,-3211.6,0.00024383,2]
[372383581,1752619853915,-502.59,0.00024383,2]
[372383582,1752619853925,-812.5,0.00024383,2]
[372383583,1752619853934,-460.0,0.00024383,2]
[372383584,1752619853943,-3534.76,0.00024383,2]
[372383585,1752619853953,-1980.25,0.00024383,2]
[372383586,1752619853962,-1417.29,0.00024383,2]
[372383587,1752619853971,-1366.06,0.00024383,2]
[372383588,1752619853981,-872.31,0.00024383,2]
[372383589,1752619853991,-1182.92,0.00024383,2]
[372383590,1752619854000,-1493.09,0.00024383,2]
[372383591,1752619854009,-3052.06,0.00024383,2]
[372383592,1752619854018,-779.46,0.00024383,2]
[372383593,1752619854028,-584.49,0.00024383,2]
[372383594,1752619854038,-611.81,0.00024383,2]
[372383595,1752619854048,-1067.58,0.000244,7]
[372383596,1752619854058,-600.0,0.00024418,2]
[372383597,1752619854067,-168.0,0.00024485,2]
[372383598,1752619854077,-636.23843,0.00024487,8]
[372383599,1752619854086,-681.33394769,0.000245,2]
[372383600,1752619854095,-161.5,0.00024503,7]
[372383601,1752619854105,-858.1897352,0.00024548,2]
[372383602,1752619854114,-730.916602,0.00024575,2]
[372383603,1752619854123,-160.77237198,0.0002463,2]
[372383604,1752619854133,-31432.22292633,0.00024651,2]
[372383605,1752619854142,-3404.57277499,0.00024651,2]
[372383606,1752619854151,-30521.8687212,0.00024651,2]
[372383607,1752619854161,-151.0,0.00024651,7]
[372383608,1752619854170,-375.37,0.00024657,2]
[372383609,1752619854179,-375.37,0.00024657,2]
[372383610,1752619854189,-375.37,0.00024657,2]
[372383611,1752619854198,-375.37,0.00024657,2]
[372383612,1752619854208,-375.37,0.00024657,2]
[372383613,1752619854218,-375.37,0.00024657,2]
[372383614,1752619854310,-375.37,0.00024657,2]
[372383615,1752619854320,-375.37,0.00024657,2]
[372383616,1752619854330,-375.37,0.00024657,2]
[372383617,1752619854339,-375.37,0.00024657,2]
[372383618,1752619854349,-375.37,0.00024657,2]
[372383619,1752619854359,-375.37,0.00024657,2]
[372383620,1752619854368,-375.37,0.00024657,2]
[372383621,1752619854378,-375.37,0.00024657,2]
[372383622,1752619854387,-375.37,0.00024657,2]
[372383623,1752619854397,-375.37,0.00024657,2]
[372383624,1752619854406,-375.37,0.00024657,2]
[372383625,1752619854415,-375.37,0.00024657,2]
[372383626,1752619854425,-375.37,0.00024657,2]
[372383627,1752619854434,-375.37,0.00024657,2]
[372383628,1752619854443,-375.37,0.00024657,2]
[372383629,1752619854452,-151.0,0.00024657,7]
[372383630,1752619854461,-521.23,0.00024657,2]
[372383631,1752619854470,-151.0,0.00024657,7]
[372383632,1752619854480,-151.0,0.00024657,7]
[372383633,1752619854489,-151.0,0.00024657,7]
[372383634,1752619854498,-3211.6,0.00024657,2]
[372383635,1752619854507,-502.59,0.00024657,2]
[372383636,1752619854517,-151.0,0.00024657,7]
[372383637,1752619854526,-812.5,0.00024657,2]
[372383638,1752619854535,-512.27,0.00024657,2]
[372383639,1752619854545,-3534.76,0.00024657,2]
[372383640,1752619854557,-1980.25,0.00024657,2]
[372383641,1752619854566,-1417.29,0.00024657,2]
[372383642,1752619854575,-1366.06,0.00024657,2]
[372383643,1752619854585,-872.31,0.00024657,2]
[372383644,1752619854594,-1182.92,0.00024657,2]
[372383645,1752619854603,-1493.09,0.00024657,2]
[372383646,1752619854612,-3052.06,0.00024657,2]
[372383647,1752619854621,-779.46,0.00024657,2]
[372383648,1752619854629,-584.49,0.00024657,2]
[372383649,1752619854637,-611.81,0.00024657,2]
[372383650,1752619854647,-380.0,0.00024658,2]
[372383651,1752619854656,-165.41320986,0.00024658,2]
[372383652,1752619854666,-200.0,0.00024658,2]
[372383653,1752619854675,-200.0,0.00024658,15]
[372383654,1752619854684,-500.0,0.00024658,2]
[372383655,1752619854692,-5048.42966027,0.00024668,2]
[372383656,1752619854701,-5000.0,0.00024668,2]
[372383657,1752619854709,-5000.0,0.00024668,2]
[372383658,1752619854718,-600.0,0.00024672,2]
[372383659,1752619854726,-823.0,0.00024679,2]
[372383660,1752619854735,-500.0,0.00024685,2]
[372383661,1752619854744,-10048.04237295,0.000247,7]
[372383662,1752619854753,-159.7039591,0.00024712,2]
[372383663,1752619854762,-153.0,0.00024712,2]
[372383664,1752619854770,-351.9233585,0.00024712,2]
[372383665,1752619854779,-159.7039591,0.00024712,2]
[372383666,1752619854788,-159.7039591,0.00024712,2]
[372383667,1752619854797,-703.5067156,0.00024712,2]
[372383668,1752619854806,-153.0,0.00024712,2]
[372383669,1752619854816,-153.0,0.00024712,2]
[372383670,1752619854826,-177.9926445,0.00024712,2]
[372383671,1752619854835,-159.7039591,0.00024712,2]
[372383672,1752619854844,-576.7692041,0.00024712,2]
[372383673,1752619854854,-177.9926445,0.00024712,2]
[372383674,1752619854863,-159.7039591,0.00024712,2]
[372383675,1752619854872,-576.7692041,0.00024712,2]
[372383676,1752619854881,-153.0,0.00024712,2]
[372383677,1752619854890,-177.6465207,0.00024712,2]
[372383678,1752619854900,-153.0,0.00024712,2]
[372383679,1752619854909,-500.0,0.00024713,2]
[372383680,1752619854919,-500.0,0.0002473,2]
[372383681,1752619854928,-205.0,0.0002474,2]
[372383682,1752619854937,-500.0,0.0002474,2]
[372383683,1752619854946,-500.0,0.00024768,2]
[372383684,1752619854956,-800.0,0.00024788,2]
[372383685,1752619854965,-800.0,0.00024788,2]
[372383686,1752619854975,-500.0,0.00024795,2]
[372383687,1752619854984,-200.0,0.00024797,2]
[372383688,1752619854993,-2639.64052528,0.000248,2]
[372383689,1752619855003,-226.57457095,0.000248,2]
[372383690,1752619855012,-151.0,0.000248,7]
[372383691,1752619855022,-161.5,0.00024803,7]
[372383692,1752619855031,-500.0,0.00024822,2]
[372383693,1752619855041,-500.0,0.0002485,2]
[372383694,1752619855050,-2639.64052525,0.00024869,2]
[372383695,1752619855060,-500.0,0.00024873,2]
[372383696,1752619855069,-500.0,0.00024877,2]
[372383697,1752619855078,-608.0,0.00024899,2]
[372383698,1752619855088,-500.0,0.00024899,10]
[372383699,1752619855097,-500.0,0.00024899,10]
[372383700,1752619855106,-500.0,0.00024899,10]
[372383701,1752619855115,-500.0,0.00024899,10]
[372383702,1752619855124,-200.0,0.00024899,2]
[372383703,1752619855134,-151.0,0.00024899,7]
[372383704,1752619855143,-151.0,0.00024899,7]
[372383705,1752619855153,-151.0,0.00024899,7]
[372383706,1752619855162,-151.0,0.00024899,7]
[372383707,1752619855171,-155.403239,0.00024899,7]
[372383708,1752619855180,-155.403239,0.00024899,7]
[372383709,1752619855189,-201.399392,0.00024899,7]
[372383710,1752619855198,-201.399392,0.00024899,7]
[372383711,1752619855208,-151.0,0.000249,7]
[372383712,1752619855217,-151.0,0.000249,7]
[372383713,1752619855226,-151.905852,0.000249,7]
[372383714,1752619855236,-151.0,0.000249,7]
[372383715,1752619855245,-151.0,0.000249,7]
[372383716,1752619855254,-245.627837,0.000249,7]
[372383717,1752619855264,-151.0,0.000249,7]
[372383718,1752619855273,-151.0,0.000249,7]
[372383719,1752619855282,-6869.7,0.000249,7]
[372383720,1752619855292,-151.0,0.000249,7]
[372383721,1752619855302,-151.0,0.000249,7]
[372383722,1752619855311,-151.0,0.000249,7]
[372383723,1752619855321,-151.0,0.000249,7]
[372383724,1752619855330,-151.0,0.000249,7]
[372383725,1752619855339,-151.0,0.000249,7]
[372383726,1752619855349,-151.0,0.000249,7]
[372383727,1752619855358,-151.0,0.000249,7]
[372383728,1752619855368,-151.0,0.000249,7]
[372383729,1752619855377,-151.0,0.000249,7]
[372383730,1752619855386,-848573.146689,0.000249,2]
[372383731,1752619855396,-155.403239,0.000249,7]
[372383732,1752619855405,-151.0,0.000249,7]
[372383733,1752619855414,-155.403239,0.000249,7]
[372383734,1752619855423,-201.399392,0.000249,7]
[372383735,1752619855433,-201.399392,0.000249,7]
[372383736,1752619855442,-500.0,0.00024905,2]
[372383737,1752619855451,-4000.0,0.00024915,4]
[372383738,1752619855460,-600.0,0.00024926,2]
[372383739,1752619855470,-801.57209986,0.00024927,2]
[372383740,1752619855479,-500.0,0.0002493,2]
[372383741,1752619855489,-375.37,0.00024931,2]
[372383742,1752619855498,-521.23,0.00024931,2]
[372383743,1752619855507,-3211.6,0.00024931,2]
[372383744,1752619855517,-502.59,0.00024931,2]
[372383745,1752619855526,-812.5,0.00024931,2]
[372383746,1752619855535,-3534.76,0.00024931,2]
[372383747,1752619855546,-1980.25,0.00024931,2]
[372383748,1752619855557,-1417.29,0.00024931,2]
[372383749,1752619855567,-1366.06,0.00024931,2]
[372383750,1752619855577,-872.31,0.00024931,2]
[372383751,1752619855587,-1182.92,0.00024931,2]
[372383752,1752619855597,-1493.09,0.00024931,2]
[372383753,1752619855607,-3052.06,0.00024931,2]
[372383754,1752619855617,-779.46,0.00024931,2]
[372383755,1752619855626,-584.49,0.00024931,2]
[372383756,1752619855635,-611.81,0.00024931,2]
[372383757,1752619855644,-500.0,0.00024932,2]
[372383758,1752619855653,-2639.64052525,0.00024938,2]
[372383759,1752619855663,-608.0,0.00024954,2]
[372383760,1752619855672,-608.0,0.00024958,7]
[372383761,1752619855682,-500.0,0.00024959,2]
[372383762,1752619855692,-500.0,0.00024979,10]
[372383763,1752619855702,-500.0,0.00024979,10]
[372383764,1752619855711,-500.0,0.00024979,10]
[372383765,1752619855721,-500.0,0.00024987,2]
[372383766,1752619855730,-906.66872037,0.00024987,2]
[372383767,1752619855740,-500.0,0.00024989,10]
[372383768,1752619855749,-500.0,0.00024989,10]
[372383769,1752619855758,-500.0,0.00024989,10]
[372383770,1752619855768,-500.0,0.00024989,10]
[372383771,1752619855778,-961095.27176203,0.0002499,4]
[372383772,1752619855793,-4613.53284693,0.0002499,4]
[372383773,1752619855805,-2140.0,0.0002499,4]
[372383774,1752619855817,-1241.1733763,0.0002499,4]
[372383775,1752619855828,-377.33167231,0.0002499,4]
[372383776,1752619855839,-1476.8542889,0.0002499,4]
[372383777,1752619855851,-2221.69833857,0.0002499,4]
[372383778,1752619855931,-460.0,0.00019178,2]
[372383779,1752619855942,-460.0,0.00019178,2]
[372383780,1752619855952,-460.0,0.00019452,2]
[372383781,1752619855961,-197.4756755,0.00019452,2]
[372383782,1752619855972,-262.5243245,0.00019452,2]
[372383783,1752619855981,-117.83821437,0.00019452,2]
[372383784,1752619855993,-342.16178563,0.00019452,2]
[372383785,1752619856002,-460.0,0.00019726,2]
[372383786,1752619856012,-460.0,0.00019726,2]
[372383787,1752619856021,-439.20547736,0.0002,2]
[372383788,1752619856031,-460.0,0.0002,2]
[372383789,1752619856040,-70741.37531415,0.0002499,4]
[372383790,1752619856178,-460.0,0.00019178,2]
[372383791,1752619856188,-460.0,0.00019178,2]
[372383792,1752619856198,-460.0,0.00019452,2]
[372383793,1752619856208,-35897.43563898,0.0002499,4]
[372383794,1752619856218,-151.0,0.0002499,7]
[372383795,1752619856227,-151.0,0.0002499,7]
[372383796,1752619856237,-151.0,0.0002499,7]
[372383797,1752619856247,-151.0,0.0002499,7]
[372383798,1752619856256,-152.657689,0.0002499,7]
[372383799,1752619856265,-151.0,0.0002499,7]
[372383800,1752619856275,-151.0,0.0002499,7]
[372383801,1752619856284,-151.0,0.0002499,7]
[372383802,1752619856295,-153.918382,0.0002499,7]
[372383803,1752619856304,-151.0,0.0002499,7]
[372383804,1752619856313,-151.30211,0.0002499,7]
[372383805,1752619856323,-151.0,0.0002499,7]
[372383806,1752619856332,-151.0,0.0002499,7]
[372383807,1752619856342,-151.0,0.0002499,7]
[372383808,1752619856351,-151.0,0.0002499,7]
[372383809,1752619856360,-151.0,0.0002499,7]
[372383810,1752619856370,-151.0,0.0002499,7]
[372383811,1752619856379,-151.0,0.0002499,7]
[372383812,1752619856388,-151.0,0.0002499,7]
[372383813,1752619856398,-151.0,0.0002499,7]
[372383814,1752619856407,-155.403239,0.0002499,7]
[372383815,1752619856416,-151.0,0.0002499,7]
[372383816,1752619856426,-155.403239,0.0002499,7]
[372383817,1752619856435,-201.399392,0.0002499,7]
[372383818,1752619856445,-201.399392,0.0002499,7]
[372383819,1752619856455,-500.0,0.00024997,10]
[372383820,1752619856464,-500.0,0.00024997,10]
[372383821,1752619856474,-500.0,0.00024997,10]
[372383822,1752619856483,-500.0,0.00024997,10]
[372383823,1752619856492,-349.01881531,0.00024998,10]
[372383824,1752619856502,-500.0,0.00024998,10]
[372383825,1752619856512,-500.0,0.00024998,10]
[372383826,1752619856522,-500.0,0.00024998,10]
[372383827,1752619856532,-136040.79061357,0.00024998,2]
[372383828,1752619856541,-500.0,0.00024999,10]
[372383829,1752619856556,-348.96637679,0.00024999,10]
[372383830,1752619856595,6146.5589986,0.00018432,2]
[372383831,1752619856620,7000.9592358,0.00018432,2]
[372383832,1752619856769,-469.32885845,0.00019178,2]
[372383833,1752619856779,-460.0,0.00019178,2]
[372383834,1752619856789,-460.0,0.00019178,2]
[372383835,1752619856799,-460.0,0.00019178,2]
[372383836,1752619856808,-461.54210507,0.00019452,2]
[372383837,1752619856817,-460.0,0.00019452,2]
[372383838,1752619856827,-8576.97673559,0.000195,2]
[372383839,1752619856839,-3339.44922212,0.000195,2]
[372383840,1752619856850,-7040.38615408,0.000195,2]
[372383841,1752619856861,-1929.67523744,0.000195,2]
[372383842,1752619856878,-4651.65265077,0.000195,2]
[372383843,1752619856887,-960.8108501,0.000214,2]
[372383844,1752619856899,-1321.87702452,0.000214,2]
[372383845,1752619856911,-670.79689604,0.000214,2]
[372383850,1752620673408,297.635342,0.00013699,2]
[372383852,1752620746140,-461.57298283,0.00018954,2]
[372383853,1752620746161,-300.0,0.00018968,2]
[372383854,1752620746182,-592.0,0.00018969,2]
[372383855,1752620746203,-300.0,0.00018969,2]
[372383856,1752620746224,-44.88119227,0.00018969,2]
[372383857,1752620751086,-255.11880773,0.00018969,2]
[372383858,1752620751110,-1200.0,0.00018969,2]
[372383859,1752620751133,-300.0,0.00018969,2]
[372383860,1752620751154,-300.0,0.00018969,2]
[372383861,1752620751176,-1267.30567696,0.0001897,2]
[372383864,1752620831109,-2104.44415356,0.000189,2]
[372383865,1752620831133,-1200.0,0.00018969,2]
[372383866,1752620831154,-300.0,0.00018969,2]
[372383867,1752620831176,-4732.99412927,0.0001897,2]
[372383868,1752620843076,-952.31272391,0.0001897,2]
[372383869,1752620847197,-1264.01738186,0.0001897,2]
[372383870,1752620849382,-10283.04221009,0.0001897,2]
[372384356,1752621037974,-216.19505471,0.00018951,2]
[372384357,1752621037983,-851.37208345,0.0001897,2]
[372384358,1752621037996,-648.95579446,0.0001897,2]
[372384359,1752621038006,-500.0,0.00019051,2]
[372384360,1752621038015,-500.0,0.00019051,2]
[372384361,1752621038025,-500.0,0.00019051,2]
[372384362,1752621038034,-500.0,0.00019051,2]
[372384363,1752621038043,-500.0,0.00019051,2]
[372384364,1752621038052,-211.22497054,0.00019051,2]
[372384365,1752621038061,-500.0,0.00019051,2]
[372384366,1752621038082,-199.18946711,0.00019051,2]
[372384367,1752621038095,-300.81053289,0.00019051,2]
[372384368,1752621038104,-500.0,0.00019051,2]
[372384369,1752621038114,-500.0,0.00019051,2]
[372384371,1752621038123,-500.0,0.00019051,2]
[372384373,1752621038132,-500.0,0.00019051,2]
[372384375,1752621038142,-500.0,0.00019051,2]
[372384376,1752621038151,-304.28027119,0.00019051,2]
[372384428,1752621038723,-195.71972881,0.00019051,2]
[372384430,1752621038732,-500.0,0.00019051,2]
[372384432,1752621038742,-67.34227119,0.00019051,2]
[372384434,1752621038753,-432.65772881,0.00019051,2]
[372384436,1752621038763,-500.0,0.00019051,2]
[372384438,1752621038772,-500.0,0.00019051,2]
[372384440,1752621038782,-500.0,0.00019051,2]
[372384442,1752621038792,-500.0,0.00019051,2]
[372384444,1752621038802,-500.0,0.00019051,2]
[372384446,1752621038812,-500.0,0.00019051,2]
[372384448,1752621038822,-500.0,0.00019051,2]
[372384450,1752621038832,-500.0,0.00019051,2]
[372384452,1752621038841,-500.0,0.00019051,2]
[372384454,1752621038851,-500.0,0.00019051,2]
[372384456,1752621038861,-500.0,0.00019051,2]
[372384458,1752621038870,-500.0,0.00019051,2]
[372384460,1752621038881,-500.0,0.00019051,2]
[372384462,1752621038890,-500.0,0.00019051,2]
[372384464,1752621038900,-500.0,0.00019051,2]
[372384466,1752621038910,-500.0,0.00019051,2]
[372384468,1752621038919,-500.0,0.00019051,2]
[372384470,1752621038928,-500.0,0.00019051,2]
[372384472,1752621038938,-500.0,0.00019051,2]
[372384474,1752621038947,-500.0,0.00019051,2]
[372384476,1752621038956,-500.0,0.00019051,2]
[372384478,1752621038965,-500.0,0.00019051,2]
[372384480,1752621038976,-521.2745109,0.00019051,2]
[372384482,1752621038986,-500.0,0.00019051,2]
[372384484,1752621038996,-500.0,0.00019051,2]
[372384486,1752621039005,-500.0,0.00019051,2]
[372384488,1752621039015,-500.0,0.00019051,2]
[372384490,1752621039024,-500.0,0.00019051,2]
[372384492,1752621039033,-500.0,0.00019051,2]
[372384494,1752621039043,-300.0,0.00019051,2]
[372384496,1752621039052,-300.0,0.00019051,2]
[372384498,1752621039062,-1200.0,0.00019051,2]
[372384500,1752621039071,-300.0,0.00019051,2]
[372384502,1752621039080,-300.0,0.00019051,2]
[372384504,1752621039089,-500.0,0.00019053,2]
[372384506,1752621039099,-161.38,0.00019168,3]
[372384508,1752621039109,-484.16,0.00019168,3]
[372384510,1752621039120,-304.064,0.00019177,2]
[372384512,1752621039131,-460.0,0.00019178,2]
[372384514,1752621039140,-460.0,0.00019178,2]
[372384516,1752621039150,-461.10771503,0.00019178,2]
[372384518,1752621039160,-460.0,0.00019178,2]
[372384520,1752621039170,-550.21841317,0.00019178,2]
[372384522,1752621039181,-460.0,0.00019178,2]
[372384524,1752621039193,-460.0,0.00019178,2]
[372384526,1752621039207,-460.0,0.00019178,2]
[372384528,1752621039216,-460.0,0.00019178,2]
[372384530,1752621039226,-460.0,0.00019178,2]
[372384532,1752621039235,-460.0,0.00019178,2]
[372384534,1752621039246,-365.67973378,0.00019178,2]
[372384536,1752621039255,-460.0,0.00019178,2]
[372384538,1752621039264,-460.0,0.00019178,2]
[372384540,1752621039275,-460.0,0.00019178,2]
[372384542,1752621039285,-461.20108132,0.00019178,2]
[372384544,1752621039295,-460.0,0.00019178,2]
[372384546,1752621039304,-444.29473958,0.00019178,2]
[372384548,1752621039313,-460.0,0.00019178,2]
[372384550,1752621039322,-460.0,0.00019178,2]
[372384552,1752621039333,-460.0,0.00019178,2]
[372384554,1752621039343,-460.0,0.00019178,2]
[372384556,1752621039352,-460.0,0.00019178,2]
[372384558,1752621039363,-460.0,0.00019178,2]
[372384560,1752621039373,-460.0,0.00019178,2]
[372384562,1752621039382,-460.0,0.00019178,2]
[372384564,1752621039392,-460.0,0.00019178,2]
[372384566,1752621039402,-461.77044282,0.00019178,2]
[372384568,1752621039417,-460.0,0.00019178,2]
[372384570,1752621039426,-400.40905759,0.00019178,2]
[372384572,1752621039437,-185.93914481,0.00019178,2]
[372384574,1752621039448,-460.0,0.00019178,2]
[372384576,1752621039457,-460.0,0.00019178,2]
[372384578,1752621039468,-460.47346154,0.00019178,2]
[372384580,1752621039477,-460.0,0.00019178,2]
[372384582,1752621039487,-460.77579051,0.00019178,2]
[372384584,1752621039496,-460.0,0.00019178,2]
[372384587,1752621039510,-460.0,0.00019178,2]
[372384589,1752621039519,-460.0,0.00019178,2]
[372384591,1752621039528,-430.0,0.00019178,2]
[372384593,1752621039538,-460.0,0.00019178,2]
[372384595,1752621039548,-460.0,0.00019178,2]
[372384597,1752621039558,-460.0,0.00019178,2]
[372384599,1752621039567,-460.0,0.00019178,2]
[372384601,1752621039577,-460.0,0.00019178,2]
[372384603,1752621039587,-460.0,0.00019178,2]
[372384604,1752621039596,-460.0,0.00019178,2]
[372384606,1752621039606,-460.0,0.00019178,2]
[372384608,1752621039615,-460.0,0.00019178,2]
[372384610,1752621039625,-460.0,0.00019178,2]
[372384612,1752621039635,-460.0,0.00019178,2]
[372384614,1752621039644,-460.0,0.00019178,2]
[372384616,1752621039654,-460.0,0.00019178,2]
[372384619,1752621039664,-460.0,0.00019178,2]
[372384620,1752621039674,-460.0,0.00019178,2]
[372384623,1752621039684,-460.0,0.00019178,2]
[372384625,1752621039695,-460.0,0.00019178,2]
[372384627,1752621039705,-460.0,0.00019178,2]
[372384628,1752621039714,-460.0,0.00019178,2]
[372384630,1752621039724,-460.0,0.00019178,2]
[372384632,1752621039733,-460.0,0.00019178,2]
[372384634,1752621039742,-462.6850279,0.00019178,2]
[372384636,1752621039752,-460.0,0.00019178,2]
[372384638,1752621039761,-460.0,0.00019178,2]
[372384640,1752621039770,-549.49533021,0.00019178,2]
[372384642,1752621039780,-460.0,0.00019178,2]
[372384644,1752621039789,-460.0,0.00019178,2]
[372384646,1752621039799,-551.26785098,0.00019178,2]
[372384648,1752621039809,-460.0,0.00019178,2]
[372384650,1752621039818,-460.0,0.00019178,2]
[372384652,1752621039828,-460.0,0.00019178,2]
[372384654,1752621039837,-460.0,0.00019178,2]
[372384656,1752621039847,-460.0,0.00019178,2]
[372384658,1752621039856,-460.0,0.00019178,2]
[372384660,1752621039866,-460.0,0.00019178,2]
[372384662,1752621039877,-460.0,0.00019178,2]
[372384664,1752621039887,-460.0,0.00019178,2]
[372384666,1752621039897,-460.0,0.00019178,2]
[372384668,1752621039906,-460.0,0.00019178,2]
[372384671,1752621039916,-460.0,0.00019178,2]
[372384672,1752621039926,-460.0,0.00019178,2]
[372384675,1752621039936,-460.0,0.00019178,2]
[372384676,1752621039945,-460.0,0.00019178,2]
[372384678,1752621039955,-460.0,0.00019178,2]
[372384680,1752621039965,-461.36727751,0.00019178,2]
[372384683,1752621039975,-460.0,0.00019178,2]
[372384684,1752621039985,-460.0,0.00019178,2]
[372384686,1752621039994,-460.0,0.00019178,2]
[372384688,1752621040004,-460.0,0.00019178,2]
[372384690,1752621040013,-460.0,0.00019178,2]
[372384692,1752621040023,-460.0,0.00019178,2]
[372384695,1752621040033,-460.0,0.00019178,2]
[372384697,1752621040043,-461.89479244,0.00019178,2]
[372384699,1752621040052,-460.0,0.00019178,2]
[372384701,1752621040061,-460.0,0.00019178,2]
[372384702,1752621040070,-460.0,0.00019178,2]
[372384705,1752621040083,-460.0,0.00019178,2]
[372384707,1752621040093,-460.0,0.00019178,2]
[372384709,1752621040102,-460.0,0.00019178,2]
[372384710,1752621040112,-460.0,0.00019178,2]
[372384713,1752621040121,-460.0,0.00019178,2]
[372384715,1752621040134,-380.99330358,0.00019178,2]
[372384717,1752621040143,-460.0,0.00019178,2]
[372384719,1752621040154,-460.0,0.00019178,2]
[372384721,1752621040163,-460.0,0.00019178,2]
[372384723,1752621040173,-460.0,0.00019178,2]
[372384725,1752621040183,-460.0,0.00019178,2]
[372384727,1752621040194,-460.0,0.00019178,2]
[372384729,1752621040205,-460.0,0.00019178,2]
[372384731,1752621040215,-460.0,0.00019178,2]
[372384733,1752621040224,-460.0,0.00019178,2]
[372384735,1752621040234,-460.0,0.00019178,2]
[372384737,1752621040243,-460.0,0.00019178,2]
[372384739,1752621040253,-460.0,0.00019178,2]
[372384741,1752621040262,-463.7158073,0.00019178,2]
[372384743,1752621040272,-462.8780156,0.00019178,2]
[372384745,1752621040282,-460.49227842,0.00019178,2]
[372384747,1752621040292,-460.0,0.00019178,2]
[372384749,1752621040301,-460.0,0.00019178,2]
[372384751,1752621040311,-277.40662346,0.00019178,2]
[372384753,1752621040327,-182.59337654,0.00019178,2]
[372384755,1752621040337,-102.69462351,0.00019178,2]
[372384758,1752621040348,-357.30537649,0.00019178,2]
[372384760,1752621040358,-460.0,0.00019178,2]
[372384761,1752621040367,-460.0,0.00019178,2]
[372384763,1752621040379,-460.0,0.00019178,2]
[372384766,1752621040390,-460.0,0.00019178,2]
[372384767,1752621040399,-460.0,0.00019178,2]
[372384769,1752621040409,-460.0,0.00019178,2]
[372384771,1752621040419,-460.0,0.00019178,2]
[372384774,1752621040430,-460.0,0.00019178,2]
[372384776,1752621040451,-460.0,0.00019178,2]
[372384778,1752621040464,-330.18802534,0.00019178,2]